bitfinex/quotes_SOLUSD_20250714
["timestamp","ask_amount","ask_price","bid_price","bid_amount"]
[1752508142809,6.09867658,163.97,163.93,16.78468397]
[1752508142971,1.30757032,163.96,163.93,16.78468397]
[1752508143169,33.54,163.95,163.93,16.78468397]
[1752508143374,0.60757032,163.94,163.92,455.84645384]
[1752508143782,1.30757032,163.94,163.92,455.84645384]
[1752508143975,0.7,163.93,163.92,455.84645384]
[1752508144179,6.9415,163.93,163.92,412.38657201]
[1752508144383,10.0,163.88,163.77,33.54]
[1752508144584,1.20757032,163.87,163.73,0.68]
[1752508144785,1.20757032,163.87,163.74,34.3]
[1752508144786,21.95969729,163.86,163.74,34.3]
[1752508145098,0.60757032,163.85,163.75,34.235845]
[1752508145295,1.20757032,163.85,163.75,33.555845]
[1752508145500,0.6,163.84,163.72,0.68]
[1752508145691,0.60757032,163.83,163.73,33.8]
[1752508145885,0.6,163.82,163.74,33.8]
[1752508146085,6.78397032,163.81,163.75,33.8]
[1752508146275,0.6,163.8,163.75,33.8]
[1752508146475,0.60757032,163.79,163.75,33.8]
[1752508146697,6.70575161,163.78,163.75,33.8]
[1752508146884,0.60757032,163.77,163.75,33.8]
[1752508147201,0.6,163.76,163.75,33.8]
[1752508147577,0.6,163.76,163.61,0.68]
[1752508147578,1.5898,163.75,163.61,0.68]
[1752508147778,26.0,163.66,163.56,0.68]
[1752508147983,26.0,163.66,163.51,26.3]
[1752508147984,1.20757032,163.65,163.53,0.68]
[1752508148288,0.6,163.64,163.54,33.84]
[1752508148488,26.60757032,163.63,163.54,33.84]
[1752508148808,26.60757032,163.63,163.55,0.68]
[1752508148809,32.71893728,163.63,163.55,0.68]
[1752508149514,33.31893728,163.63,163.56,33.92]
[1752508149883,32.71893728,163.63,163.57,16.78468397]
[1752508150181,0.60757032,163.63,163.57,0.68]
[1752508150518,0.6,163.63,163.53,0.68]
[1752508150683,32.11172228,163.62,163.58,34.22]
[1752508150883,0.60757032,163.61,163.58,34.22]
[1752508151186,0.60757032,163.61,163.58,34.9]
[1752508151392,0.6,163.6,163.51,26.3]
[1752508151594,0.60757032,163.59,163.52,35.42]
[1752508151800,0.6,163.66,163.53,0.68]
[1752508151801,0.60757032,163.63,163.53,0.68]
[1752508151981,0.60757032,163.63,163.54,16.78468397]
[1752508152313,0.60757032,163.63,163.53,0.68]
[1752508152314,0.60757032,163.68,163.55,35.52]
[1752508152609,0.7,163.62,163.57,16.78468397]
[1752508152909,22.63003591,163.73,163.59,33.12431896]
[1752508152910,0.7,163.7,163.59,33.12431896]
[1752508153087,0.60757032,163.69,163.62,33.12431896]
[1752508153412,0.60757032,163.69,163.59,16.78468397]
[1752508153413,0.60757032,163.69,163.63,70.68]
[1752508153592,0.60757032,163.72,163.63,70.68]
[1752508153784,0.60757032,163.72,163.67,16.33963499]
[1752508153984,0.60757032,163.72,163.65,16.78468397]
[1752508154211,0.60757032,163.77,163.66,0.68]
[1752508154701,0.60757032,163.77,163.68,6.10940516]
[1752508154905,6.71297447,163.79,163.72,16.78468397]
[1752508155097,0.7,163.78,163.7,16.78468397]
[1752508155317,26.0,163.76,163.69,96.42]
[1752508155599,1.30757032,163.75,163.69,96.42]
[1752508155804,0.7,163.74,163.69,70.08]
[1752508156042,1.30757032,163.73,163.69,70.08]
[1752508156208,0.7,163.72,163.67,26.34]
[1752508156407,1.30757032,163.71,163.68,35.2]
[1752508156638,0.60757032,163.71,163.68,35.2]
[1752508156930,0.60757032,163.71,163.68,35.88]
[1752508157225,0.60757032,163.71,163.69,16.78468397]
[1752508157226,6.71597028,163.71,163.69,16.78468397]
[1752508157415,0.60757032,163.71,163.69,51.98468397]
[1752508157602,6.7156055,163.72,163.67,26.34]
[1752508157803,26.0,163.71,163.68,52.66468397]
[1752508158026,0.60757032,163.7,163.68,51.98468397]
[1752508158218,0.60757032,163.72,163.69,0.68]
[1752508158419,0.60757032,163.72,163.7,0.68]
[1752508158617,0.60757032,163.72,163.71,16.78468397]
[1752508158812,0.60757032,163.75,163.71,0.68]
[1752508159831,0.60757032,163.75,163.72,0.68]
[1752508160035,0.60757032,163.75,163.73,70.26]
[1752508160533,0.60757032,163.75,163.74,16.78468397]
[1752508160740,0.7,163.78,163.74,16.78468397]
[1752508160741,0.60757032,163.77,163.74,16.78468397]
[1752508160909,6.71392005,163.77,163.74,16.78468397]
[1752508161216,7.41392005,163.77,163.74,16.78468397]
[1752508161530,0.7,163.76,163.73,70.26]
[1752508161853,0.60757032,163.75,163.74,16.78468397]
[1752508162017,0.60757032,163.82,163.74,33.12431896]
[1752508162211,0.60757032,163.82,163.77,33.12431896]
[1752508162414,0.60757032,163.85,163.81,16.33963499]
[1752508162612,0.60757032,163.88,163.82,87.21963499]
[1752508162922,6.10239824,163.87,163.82,70.88]
[1752508163114,1.30757032,163.86,163.79,0.68]
[1752508163423,0.60757032,163.86,163.81,33.12431896]
[1752508163625,0.60757032,163.87,163.83,16.78468397]
[1752508163829,6.70810716,163.92,163.85,16.78468397]
[1752508164138,0.7,163.91,163.86,35.14]
[1752508164310,0.60757032,163.9,163.86,35.14]
[1752508164641,0.60757032,163.9,163.87,35.12]
[1752508164642,26.7,163.89,163.87,35.12]
[1752508164814,7.40959619,163.88,163.87,35.12]
[1752508165017,7.40959619,163.88,163.82,16.78468397]
[1752508165018,26.0,163.85,163.82,16.78468397]
[1752508165220,0.60757032,163.84,163.83,35.8]
[1752508165432,26.0,163.85,163.83,35.8]
[1752508165937,26.0,163.85,163.83,35.12]
[1752508166134,0.60757032,163.84,163.83,51.90468397]
[1752508166459,26.0,163.85,163.83,52.58468397]
[1752508166815,0.60757032,163.87,163.83,51.90468397]
[1752508166816,0.60757032,163.84,163.83,51.90468397]
[1752508167010,0.60757032,163.85,163.83,51.90468397]
[1752508167313,0.60757032,163.89,163.84,33.80431896]
[1752508167636,0.60757032,163.89,163.85,16.78468397]
[1752508167835,0.60757032,163.89,163.85,17.46468397]
[1752508168028,0.60757032,163.89,163.86,0.68]
[1752508168223,0.60757032,163.89,163.83,16.78468397]
[1752508168224,0.60757032,163.89,163.87,35.72]
[1752508168531,6.10053684,163.92,163.88,0.67]
[1752508168932,21.34817495,163.95,163.88,0.67]
[1752508169317,0.68,163.94,163.89,35.0]
[1752508169628,0.68,163.94,163.9,35.0]
[1752508169934,0.68,163.93,163.86,0.67]
[1752508170468,0.60757032,163.92,163.87,34.96]
[1752508170645,1.28757032,163.92,163.85,17.45468397]
[1752508170841,1.28757032,163.92,163.88,34.96]
[1752508171148,6.78090903,163.91,163.89,34.94]
[1752508171449,6.78090903,163.91,163.83,16.78468397]
[1752508171450,1.28757032,163.9,163.83,16.78468397]
[1752508171654,0.60757032,163.9,163.84,35.61]
[1752508171857,0.60757032,163.9,163.85,17.30468397]
[1752508172057,0.60757032,163.9,163.85,33.64431896]
[1752508172261,0.60757032,163.9,163.87,16.78468397]
[1752508172464,0.60757032,163.9,163.88,34.92]
[1752508172666,0.60757032,163.9,163.88,35.46]
[1752508172969,0.60757032,163.9,163.89,0.6]
[1752508173267,6.70885158,163.9,163.89,34.88]
[1752508173865,0.60757032,163.9,163.89,34.88]
[1752508174066,6.70815542,163.92,163.89,35.55]
[1752508174273,6.70815542,163.92,163.9,0.67]
[1752508174566,6.70815542,163.92,163.89,34.88]
[1752508174867,6.70815542,163.92,163.89,35.55]
[1752508175478,6.70815542,163.92,163.9,0.6]
[1752508176344,6.70815542,163.92,163.91,34.78]
[1752508177149,0.60757032,163.92,163.91,35.45]
[1752508177444,0.60757032,163.95,163.91,35.45]
[1752508177864,6.70699087,163.95,163.91,35.45]
[1752508178068,6.70699087,163.95,163.92,0.67]
[1752508178270,6.70699087,163.95,163.91,34.78]
[1752508178445,6.70699087,163.95,163.91,35.45]
[1752508178649,6.70699087,163.95,163.92,0.67]
[1752508178861,6.70699087,163.95,163.93,0.67]
[1752508179273,6.70699087,163.95,163.91,34.78]
[1752508179455,6.70699087,163.95,163.93,0.67]
[1752508179658,6.70699087,163.95,163.91,35.45]
[1752508179979,6.70699087,163.95,163.92,0.67]
[1752508181494,6.70699087,163.95,163.89,0.67]
[1752508181781,6.70699087,163.95,163.9,51.54468397]
[1752508181987,6.70699087,163.95,163.9,52.21468397]
[1752508182155,7.38699087,163.95,163.9,52.21468397]
[1752508182352,0.68,163.94,163.9,51.54468397]
[1752508182556,0.60757032,163.93,163.9,51.54468397]
[1752508182759,0.60757032,163.93,163.9,52.21468397]
[1752508182967,1.28757032,163.93,163.88,0.67]
[1752508183158,0.68,163.92,163.89,34.76]
[1752508183454,0.68,163.92,163.86,0.67]
[1752508183455,6.70847935,163.91,163.86,0.67]
[1752508183661,7.38847935,163.91,163.86,0.67]
[1752508183863,22.64075193,163.91,163.87,34.74]
[1752508184081,22.64075193,163.91,163.87,35.41]
[1752508184082,6.70847935,163.91,163.87,35.41]
[1752508184579,7.38847935,163.91,163.87,34.74]
[1752508185075,22.64075193,163.91,163.87,34.74]
[1752508185290,21.96075193,163.91,163.88,0.67]
[1752508185497,21.96075193,163.91,163.87,34.74]
[1752508185891,47.96075193,163.91,163.87,35.41]
[1752508186472,26.0,163.88,163.82,0.67]
[1752508186668,0.60757032,163.87,163.83,34.7]
[1752508186874,1.28757032,163.87,163.82,0.67]
[1752508187071,1.28757032,163.87,163.83,34.7]
[1752508187372,6.10277065,163.86,163.83,34.7]
[1752508187591,0.60757032,163.85,163.81,16.78468397]
[1752508187894,0.60757032,163.85,163.82,34.66]
[1752508188195,0.60757032,163.85,163.79,0.67]
[1752508188196,1.28757032,163.85,163.79,0.67]
[1752508188400,1.28757032,163.85,163.82,26.32]
[1752508188401,0.68,163.84,163.82,26.32]
[1752508188580,0.60757032,163.83,163.82,26.32]
[1752508188904,0.60757032,163.83,163.82,60.98]
[1752508189405,6.71145849,163.83,163.82,60.98]
[1752508189770,0.60757032,163.84,163.82,61.65]
[1752508190003,6.70996856,163.87,163.83,0.67]
[1752508190189,0.60757032,163.87,163.83,16.78468397]
[1752508190374,0.60757032,163.87,163.82,26.32]
[1752508190680,0.68,163.86,163.83,34.64]
[1752508190996,1.28757032,163.85,163.83,34.64]
[1752508191409,6.10351562,163.84,163.83,34.64]
[1752508191700,6.78351562,163.84,163.83,34.64]
[1752508192274,6.78351562,163.84,163.82,26.32]
[1752508192476,0.60757032,163.83,163.82,26.32]
[1752508192796,0.60757032,163.83,163.82,60.9]
[1752508193487,6.71145849,163.83,163.82,60.9]
[1752508193687,6.71145849,163.83,163.82,61.57]
[1752508194101,6.71145849,163.83,163.82,60.9]
[1752508195193,7.39145849,163.83,163.82,60.9]
[1752508196080,33.39145849,163.83,163.82,60.9]
[1752508196504,32.71145849,163.83,163.82,60.9]
[1752508196711,33.39145849,163.83,163.82,60.9]
[1752508197109,32.71145849,163.83,163.82,60.9]
[1752508198407,32.71145849,163.83,163.82,26.32]
[1752508198592,22.69117893,163.83,163.82,3.22619595]
[1752508198793,7.6897,163.82,163.71,0.69]
[1752508199105,1.32757032,163.81,163.73,16.78468397]
[1752508199305,1.32757032,163.81,163.73,0.69]
[1752508199693,21.36752136,163.8,163.73,0.69]
[1752508199903,0.60757032,163.79,163.73,0.69]
[1752508200290,1.32757032,163.79,163.72,34.68]
[1752508200487,0.60757032,163.79,163.73,17.47468397]
[1752508200710,0.60757032,163.79,163.74,0.69]
[1752508200913,0.60757032,163.79,163.75,34.68]
[1752508201210,0.60757032,163.79,163.69,16.30886301]
[1752508201211,0.72,163.78,163.76,34.66]
[1752508201414,1.32757032,163.77,163.7,0.69]
[1752508201623,1.32757032,163.77,163.71,34.66]
[1752508201789,6.10649731,163.76,163.71,34.66]
[1752508201987,0.60757032,163.75,163.71,34.66]
[1752508202204,0.60757032,163.75,163.72,0.69]
[1752508202413,6.0866,163.82,163.72,0.69]
[1752508202414,0.60757032,163.79,163.73,16.78468397]
[1752508202603,0.60757032,163.79,163.75,16.78468397]
[1752508202786,0.60757032,163.81,163.76,34.64]
[1752508202996,0.60757032,163.81,163.77,0.69]
[1752508203295,0.60757032,163.81,163.78,0.69]
[1752508203817,6.71254042,163.81,163.78,0.69]
[1752508204031,6.71254042,163.81,163.76,34.64]
[1752508204240,7.43254042,163.81,163.76,34.64]
[1752508204528,6.71254042,163.81,163.76,0.69]
[1752508204729,6.71254042,163.81,163.77,34.62]
[1752508205042,22.69412396,163.81,163.78,34.62]
[1752508206045,7.43254042,163.81,163.78,34.62]
[1752508206339,6.71254042,163.81,163.78,34.62]
[1752508206506,6.71254042,163.81,163.78,35.31]
[1752508207207,0.60757032,163.81,163.78,35.31]
[1752508207514,6.71223717,163.81,163.78,35.31]
[1752508208420,7.43223717,163.81,163.78,34.62]
[1752508209919,6.10537883,163.79,163.78,34.62]
[1752508210225,6.71294915,163.79,163.78,34.62]
[1752508210619,7.43294915,163.79,163.73,0.69]
[1752508210834,26.0,163.76,163.74,34.5]
[1752508211127,0.60757032,163.75,163.74,34.5]
[1752508211427,0.60757032,163.75,163.69,0.69]
[1752508211611,0.60757032,163.75,163.7,34.46]
[1752508211819,6.10724319,163.74,163.71,0.69]
[1752508212032,0.60757032,163.73,163.71,0.69]
[1752508212507,6.71454331,163.75,163.72,0.69]
[1752508212705,22.70171888,163.75,163.7,35.15]
[1752508212929,6.71454331,163.75,163.71,0.69]
[1752508213511,0.60757032,163.75,163.72,0.69]
[1752508213713,0.60757032,163.75,163.73,0.69]
[1752508213920,0.60757032,163.75,163.74,34.42]
[1752508214233,6.71369476,163.77,163.74,34.42]
[1752508214547,6.71369476,163.77,163.74,35.11]
[1752508214834,0.60757032,163.77,163.74,35.11]
[1752508215033,0.60757032,163.77,163.75,0.69]
[1752508215210,6.71257642,163.8,163.75,0.69]
[1752508215640,6.71257642,163.8,163.76,0.69]
[1752508216018,6.71257642,163.8,163.74,34.42]
[1752508216235,6.71257642,163.8,163.74,35.11]
[1752508216736,6.71257642,163.8,163.75,0.69]
[1752508216943,6.71257642,163.8,163.76,0.69]
[1752508217234,6.71257642,163.8,163.77,0.69]
[1752508217410,6.71257642,163.8,163.78,35.03]
[1752508217615,0.60757032,163.8,163.79,0.69]
[1752508217815,0.60757032,163.81,163.79,0.69]
[1752508218015,0.60757032,163.81,163.8,0.69]
[1752508218841,0.60757032,163.81,163.78,35.03]
[1752508219132,0.60757032,163.81,163.79,0.69]
[1752508219663,0.60757032,163.82,163.8,0.69]
[1752508219821,0.60757032,163.84,163.8,0.69]
[1752508220217,0.60757032,163.85,163.81,16.78468397]
[1752508220436,0.60757032,163.85,163.83,16.78468397]
[1752508220639,0.60757032,163.87,163.83,16.78468397]
[1752508220842,0.60757032,163.87,163.84,34.26]
[1752508221029,0.60757032,163.87,163.85,34.26]
[1752508221232,0.60757032,163.87,163.85,34.95]
[1752508221624,0.60757032,163.87,163.86,0.69]
[1752508221949,0.60757032,163.88,163.86,0.69]
[1752508222144,0.60757032,163.88,163.87,0.69]
[1752508222463,6.70959835,163.88,163.85,34.26]
[1752508222777,0.60757032,163.88,163.86,0.69]
[1752508223041,0.06,163.89,163.87,0.69]
[1752508223240,0.66757032,163.89,163.87,0.69]
[1752508223629,6.76923676,163.89,163.87,0.69]
[1752508223827,6.76923676,163.89,163.85,34.95]
[1752508224043,0.66757032,163.89,163.86,0.69]
[1752508224225,6.76945098,163.89,163.87,0.69]
[1752508224747,0.06,163.89,163.88,0.69]
[1752508225630,0.06,163.89,163.88,17.47468397]
[1752508225949,0.06,163.89,163.88,68.28]
[1752508226261,0.66757032,163.89,163.88,68.28]
[1752508226564,7.48922386,163.89,163.88,68.3]
[1752508227941,6.76922386,163.89,163.88,68.3]
[1752508228754,0.66757032,163.89,163.88,68.3]
[1752508228960,6.16165354,163.89,163.88,69.02]
[1752508229162,6.16165354,163.89,163.88,68.3]
[1752508229354,22.71335773,163.89,163.88,27.86171205]
[1752508229560,22.71335773,163.89,163.88,68.2]
[1752508229764,22.71335773,163.89,163.88,36.60178541]
[1752508229970,22.71335773,163.89,163.86,68.24]
[1752508230298,0.69,163.88,163.84,68.22]
[1752508230565,21.35969729,163.86,163.82,68.2]
[1752508230762,1.29757032,163.85,163.8,34.1]
[1752508230949,0.69,163.84,163.8,34.1]
[1752508231260,1.29757032,163.83,163.8,34.1]
[1752508231463,0.69,163.82,163.78,34.1]
[1752508231648,0.60757032,163.81,163.74,0.72]
[1752508231852,0.69,163.8,163.75,34.12]
[1752508232051,0.60757032,163.79,163.75,34.84]
[1752508232269,0.60757032,163.81,163.76,0.72]
[1752508232468,0.60757032,163.81,163.77,0.72]
[1752508232774,0.60757032,163.81,163.78,34.82]
[1752508233265,0.60757032,163.82,163.79,0.72]
[1752508233475,0.60757032,163.83,163.8,0.72]
[1752508233672,6.10323092,163.85,163.81,68.18]
[1752508233864,0.60757032,163.86,163.82,0.72]
[1752508234076,6.10202587,163.88,163.82,0.72]
[1752508234272,6.10202587,163.88,163.8,6.1455]
[1752508234273,0.60757032,163.87,163.83,0.72]
[1752508234575,32.10314311,163.85,163.81,34.8]
[1752508234775,0.60757032,163.84,163.81,34.1]
[1752508234968,0.60757032,163.84,163.81,34.82]
[1752508235282,0.60757032,163.84,163.81,34.1]
[1752508235981,0.60757032,163.84,163.79,34.78]
[1752508236282,0.60757032,163.84,163.8,0.72]
[1752508236575,6.10388817,163.83,163.81,0.72]
[1752508236784,6.10388817,163.83,163.82,0.72]
[1752508237693,0.60757032,163.84,163.82,0.72]
[1752508237974,0.60757032,163.84,163.83,0.72]
[1752508238352,0.5,163.86,163.83,34.72]
[1752508238556,0.60757032,163.85,163.81,34.0]
[1752508238756,6.10351562,163.84,163.82,0.72]
[1752508239177,6.71080339,163.85,163.83,0.72]
[1752508239953,0.60757032,163.86,163.83,0.72]
[1752508240176,0.60757032,163.86,163.84,0.72]
[1752508240362,0.60757032,163.86,163.82,16.78468397]
[1752508240363,6.10207071,163.88,163.85,0.72]
[1752508240561,6.10207071,163.88,163.86,0.72]
[1752508240880,6.1617818,163.89,163.85,33.94]
[1752508241053,0.60757032,163.88,163.85,33.94]
[1752508241259,0.60757032,163.88,163.86,0.72]
[1752508241460,0.60757032,163.88,163.87,0.72]
[1752508242680,6.70959619,163.88,163.85,34.66]
[1752508243075,0.69,163.87,163.81,0.72]
[1752508243381,0.60757032,163.86,163.82,33.86]
[1752508243583,0.60757032,163.86,163.82,34.58]
[1752508243776,0.60757032,163.86,163.82,0.72]
[1752508244157,0.60757032,163.86,163.81,33.88]
[1752508244357,0.60757032,163.86,163.83,0.72]
[1752508244567,0.60757032,163.86,163.81,0.72]
[1752508244777,0.60757032,163.86,163.78,0.03]
[1752508244778,22.0510009,163.85,163.79,0.72]
[1752508244967,0.60757032,163.84,163.79,34.58]
[1752508245168,0.60757032,163.84,163.8,0.72]
[1752508245388,0.60757032,163.84,163.79,33.86]
[1752508245592,0.60757032,163.84,163.81,0.72]
[1752508246786,6.10388817,163.83,163.79,34.58]
[1752508247087,0.60757032,163.82,163.8,0.72]
[1752508247289,15.75785779,163.85,163.81,0.72]
[1752508247290,0.5,163.85,163.81,0.72]
[1752508247596,1.10757032,163.85,163.81,34.56]
[1752508247765,0.5,163.85,163.82,17.50468397]
[1752508247964,6.10239824,163.87,163.82,17.50468397]
[1752508248188,0.60757032,163.86,163.83,0.72]
[1752508248389,1.29757032,163.86,163.81,0.72]
[1752508248887,6.10314311,163.85,163.81,0.72]
[1752508249068,0.60757032,163.84,163.79,34.64]
[1752508249264,0.60757032,163.84,163.8,0.72]
[1752508249579,0.60757032,163.84,163.78,0.75]
[1752508249960,26.0,163.82,163.78,0.03]
[1752508250160,0.60757032,163.81,163.78,0.03]
[1752508250362,0.60757032,163.81,163.79,0.72]
[1752508250764,0.60757032,163.81,163.78,0.03]
[1752508250989,6.71225603,163.81,163.78,0.75]
[1752508251493,22.66383957,163.81,163.78,0.03]
[1752508251788,7.40225603,163.81,163.78,0.03]
[1752508253272,22.66383957,163.81,163.78,0.03]
[1752508253499,0.69,163.8,163.78,0.03]
[1752508253676,0.60757032,163.79,163.78,0.03]
[1752508253995,1.29757032,163.79,163.78,0.03]
[1752508254693,0.60757032,163.79,163.78,0.03]
[1752508254871,6.10537883,163.79,163.78,0.03]
[1752508255476,6.71271641,163.8,163.78,0.03]
[1752508256886,33.40271641,163.8,163.78,0.03]
[1752508257270,0.69,163.79,163.78,0.03]
[1752508258891,6.79537883,163.79,163.78,0.03]
[1752508260608,6.10537883,163.79,163.78,0.03]
[1752508261595,6.10537883,163.79,163.78,0.7]
[1752508261786,0.60757032,163.81,163.78,0.7]
[1752508261987,6.71220373,163.81,163.78,0.7]
[1752508262297,6.71220373,163.81,163.78,0.03]
[1752508262797,0.72,163.8,163.78,0.03]
[1752508262997,6.71294915,163.79,163.78,0.03]
[1752508263293,0.60757032,163.8,163.78,0.7]
[1752508263493,6.71220373,163.81,163.79,0.67]
[1752508264298,6.71220373,163.81,163.78,0.03]
[1752508264801,6.71220373,163.81,163.78,0.7]
[1752508265201,0.5,163.83,163.79,0.67]
[1752508265499,22.02800777,163.86,163.8,0.67]
[1752508265707,6.77034097,163.86,163.8,0.67]
[1752508266277,22.02726761,163.86,163.8,0.67]
[1752508266695,32.77034097,163.86,163.8,0.67]
[1752508266906,6.77034097,163.86,163.8,0.67]
[1752508267204,6.77034097,163.86,163.81,16.78468397]
[1752508267399,6.77034097,163.86,163.82,0.67]
[1752508267400,6.77036265,163.86,163.82,0.67]
[1752508267577,0.06,163.86,163.83,0.67]
[1752508267782,0.06,163.86,163.8,16.78468397]
[1752508267783,0.66757032,163.86,163.84,0.67]
[1752508268001,6.77042988,163.86,163.82,0.67]
[1752508268799,7.49042988,163.86,163.8,17.45468397]
[1752508269007,6.77042988,163.86,163.81,0.67]
[1752508269205,6.77042988,163.86,163.8,16.78468397]
[1752508269385,6.77042988,163.86,163.82,0.67]
[1752508269892,0.06,163.86,163.83,0.67]
[1752508270212,6.16280466,163.86,163.84,0.67]
[1752508271190,6.16280466,163.86,163.82,17.45468397]
[1752508271191,0.06,163.86,163.82,17.45468397]
[1752508271521,0.66757032,163.86,163.81,33.74]
[1752508271704,0.66757032,163.86,163.82,0.67]
[1752508272088,1.38757032,163.86,163.82,0.67]
[1752508272404,0.66757032,163.86,163.82,0.67]
[1752508272790,0.66757032,163.86,163.81,16.78468397]
[1752508272791,0.66757032,163.86,163.83,0.67]
[1752508273011,0.66757032,163.86,163.84,0.67]
[1752508273325,0.66757032,163.86,163.81,16.78468397]
[1752508273496,0.06,163.86,163.85,0.67]
[1752508274592,0.06,163.86,163.85,51.17468397]
[1752508274817,0.06,163.86,163.85,17.45468397]
[1752508275103,0.06,163.86,163.85,51.15468397]
[1752508276401,0.06,163.86,163.85,17.45468397]
[1752508277095,0.06,163.86,163.85,16.78468397]
[1752508277303,0.06,163.86,163.85,17.45468397]
[1752508277714,0.06,163.86,163.82,0.67]
[1752508277917,0.72,163.85,163.8,17.45468397]
[1752508278228,1.32757032,163.84,163.78,0.03]
[1752508278401,0.72,163.83,163.78,0.03]
[1752508278720,0.60757032,163.82,163.78,0.03]
[1752508279201,0.72,163.81,163.78,1e-08]
[1752508279515,6.10537883,163.79,163.78,1e-08]
[1752508279908,6.82537883,163.79,163.78,1e-08]
[1752508280106,6.10537883,163.79,163.78,1e-08]
[1752508280497,0.60757032,163.8,163.78,1e-08]
[1752508280814,6.71145849,163.83,163.78,0.67000001]
[1752508281020,6.71145849,163.83,163.79,0.67]
[1752508281523,7.43145849,163.83,163.78,33.66000001]
[1752508281695,7.43145849,163.83,163.78,34.33000001]
[1752508282316,22.69117893,163.83,163.78,34.33000001]
[1752508282594,0.72,163.82,163.78,33.66000001]
[1752508282915,1.32757032,163.81,163.78,33.66000001]
[1752508283117,1.32757032,163.81,163.78,1e-08]
[1752508283301,0.72,163.8,163.78,1e-08]
[1752508283499,6.71294915,163.79,163.78,1e-08]
[1752508283716,7.43294915,163.79,163.78,1e-08]
[1752508283920,6.71294915,163.79,163.78,1e-08]
[1752508284204,7.43294915,163.79,163.78,1e-08]
[1752508285419,41.01294915,163.79,163.78,1e-08]
[1752508287421,7.43294915,163.79,163.78,1e-08]
[1752508287627,41.01294915,163.79,163.78,1e-08]
[1752508288825,6.71294915,163.79,163.78,1e-08]
[1752508289407,7.40294915,163.79,163.78,1e-08]
[1752508289926,6.71294915,163.79,163.78,1e-08]
[1752508290236,40.98294915,163.79,163.78,1e-08]
[1752508292506,7.40294915,163.79,163.78,1e-08]
[1752508292707,40.92294915,163.79,163.78,1e-08]
[1752508293115,26.0,163.76,163.67,16.78468397]
[1752508293325,26.0,163.76,163.63,16.78468397]
[1752508293326,26.0,163.72,163.63,16.78468397]
[1752508293619,21.38057421,163.7,163.63,17.47468397]
[1752508293923,26.0,163.67,163.63,0.69]
[1752508294128,26.0,163.65,163.6,0.69]
[1752508294330,0.60757032,163.64,163.6,0.69]
[1752508294707,0.60757032,163.64,163.61,0.69]
[1752508295038,0.60757032,163.64,163.62,0.69]
[1752508295608,22.0797207,163.63,163.58,0.69]
[1752508295820,26.0,163.6,163.53,0.69]
[1752508296015,0.60757032,163.59,163.53,0.69]
[1752508296403,0.60757032,163.59,163.54,16.78468397]
[1752508296716,0.60757032,163.59,163.55,0.69]
[1752508296919,0.60757032,163.61,163.56,0.69]
[1752508297120,33.96,163.62,163.58,16.78468397]
[1752508297121,0.60757032,163.62,163.58,16.78468397]
[1752508297333,6.11134877,163.63,163.59,0.69]
[1752508297698,6.11097531,163.64,163.59,0.69]
[1752508297918,0.60757032,163.63,163.59,0.69]
[1752508298124,6.71854563,163.64,163.59,0.69]
[1752508298326,6.71854563,163.64,163.58,16.78468397]
[1752508298531,21.9959839,163.64,163.6,0.69]
[1752508298707,21.9959839,163.64,163.61,0.69]
[1752508298906,6.71854563,163.64,163.62,0.69]
[1752508299113,6.10761619,163.73,163.63,16.78468397]
[1752508299315,0.60757032,163.72,163.65,16.78468397]
[1752508299513,0.60757032,163.72,163.66,0.69]
[1752508299713,21.37926821,163.71,163.66,0.69]